fUST/lending_fUST_20260111
["ID","MTS","AMOUNT","RATE_DAILY","PERIOD"]
[401301975,1768119044357,-1500.0,0.00014795,2]
[401301976,1768119044368,-788.05151213,0.00014795,2]
[401301977,1768119044378,-1608.00999349,0.00014795,2]
[401301978,1768119044390,-1482.84709438,0.00014795,2]
[401301979,1768119044400,-1500.0,0.00014795,2]
[401301980,1768119044411,-1500.0,0.00014795,2]
[401301981,1768119044421,-1500.0,0.00014795,2]
[401301982,1768119044432,-1499.24471264,0.00014795,2]
[401301983,1768119044443,-1500.0,0.00014795,2]
[401301984,1768119044453,-514.14829436,0.00014795,2]
[401301985,1768119044463,-1500.0,0.00014795,2]
[401301986,1768119044472,-304.84096496,0.00014795,2]
[401301987,1768119044488,-1003.80919542,0.00014795,2]
[401301988,1768119044497,-1500.0,0.00014795,2]
[401301989,1768119044507,-1516.76085072,0.00014795,2]
[401301990,1768119044517,-1500.0,0.00014795,2]
[401301991,1768119044528,-2000.0,0.00014916,2]
[401301992,1768119044538,-2000.0,0.00014916,2]
[401301993,1768119044548,-2000.0,0.00014916,2]
[401301994,1768119044558,-500.8125859,0.00014916,2]
[401301995,1768119044568,-497.39623951,0.00014916,2]
[401301996,1768119044578,-1465.81779273,0.00014916,2]
[401301997,1768119044587,-1191.81021696,0.00014916,2]
[401301998,1768119044597,-2000.0,0.00014916,2]
[401301999,1768119044607,-365.99256781,0.00014916,2]
[401302000,1768119044617,-2000.0,0.00014916,2]
[401302001,1768119044627,-1001.19360014,0.00014916,2]
[401302002,1768119044721,-1510.52551,0.00014916,2]
[401302003,1768119044731,-2000.0,0.00014916,2]
[401302004,1768119044741,-2000.0,0.00014916,2]
[401302005,1768119044750,-2000.0,0.00014916,2]
[401302006,1768119044759,-1000.0,0.00014916,2]
[401302008,1768119044768,-2000.0,0.00014916,2]
[401302009,1768119044777,-500.0,0.00014917,2]
[401302010,1768119044785,-500.0,0.00015054,2]
[401302011,1768119044795,-800.0,0.00015068,2]
[401302012,1768119044804,-152.72644825,0.00015191,2]
[401302013,1768119044813,-151.0,0.000152,2]
[401302014,1768119044822,-672.9,0.000153,2]
[401302015,1768119044831,-1200.0,0.00015316,2]
[401302016,1768119044841,-2000.0,0.00015342,2]
[401302017,1768119044850,-2000.0,0.00015342,2]
[401302018,1768119044859,-2000.0,0.00015342,2]
[401302019,1768119044868,-2000.0,0.00015342,2]
[401302020,1768119044877,-1501.01375621,0.00015342,2]
[401302021,1768119044886,-1144.01857865,0.00015342,2]
[401302023,1768119044895,-1004.51727604,0.00015342,2]
[401302025,1768119044905,-1143.18421046,0.00015342,2]
[401302027,1768119044914,-2000.0,0.00015342,2]
[401302029,1768119044922,-2000.0,0.00015342,2]
[401302030,1768119044931,-2000.0,0.00015342,2]
[401302032,1768119044940,-2000.0,0.00015342,2]
[401302034,1768119044950,-2500.0,0.00015464,2]
[401302036,1768119044959,-2500.0,0.00015464,2]
[401302037,1768119044968,-2500.0,0.00015464,2]
[401302038,1768119044977,-1167.31327235,0.00015464,2]
[401302039,1768119044987,-2500.0,0.00015464,2]
[401302040,1768119044995,-2500.0,0.00015464,2]
[401302041,1768119045004,-2500.0,0.00015464,2]
[401302042,1768119045013,-728.00390276,0.00015464,2]
[401302043,1768119045022,-2500.0,0.00015464,2]
[401302044,1768119045032,-1000.0,0.00015487,2]
[401302045,1768119045041,-791.0,0.00015487,2]
[401302046,1768119045050,-729.55974475,0.00015692,2]
[401302047,1768119045059,-3041.54642333,0.00015697,2]
[401302048,1768119045068,-151.0,0.000158,2]
[401302049,1768119045077,-672.9,0.000158,2]
[401302050,1768119045086,-300.0,0.00015864,2]
[401302051,1768119045095,-501.72405702,0.0001589,2]
[401302052,1768119045104,-2500.0,0.0001589,2]
[401302053,1768119045113,-2500.0,0.0001589,2]
[401302054,1768119045122,-2500.0,0.0001589,2]
[401302055,1768119045131,-555.48898116,0.0001589,2]
[401302056,1768119045140,-2500.0,0.0001589,2]
[401302057,1768119045149,-1634.65901332,0.0001589,2]
[401302058,1768119045159,-2000.0,0.0001589,2]
[401302059,1768119045169,-3000.0,0.00016012,2]
[401302060,1768119045178,-3000.0,0.00016012,2]
[401302061,1768119045187,-3000.0,0.00016012,2]
[401302062,1768119045197,-3000.0,0.00016012,2]
[401302063,1768119045205,-3000.0,0.00016012,2]
[401302064,1768119045216,-1500.0,0.00016012,2]
[401302065,1768119045225,-1500.0,0.00016012,2]
[401302066,1768119045234,-3475.93390545,0.00016115,2]
[401302067,1768119045244,-800.00734843,0.00016164,2]
[401302068,1768119045254,-672.9,0.000163,2]
[401302069,1768119045264,-151.0,0.000164,2]
[401302070,1768119045273,-500.0,0.00016438,2]
[401302071,1768119045283,-500.0,0.00016438,2]
[401302072,1768119045293,-631.92486594,0.00016438,2]
[401302073,1768119045303,-500.0,0.00016438,2]
[401302074,1768119045312,-500.0,0.00016438,2]
[401302075,1768119045322,-500.0,0.00016438,2]
[401302076,1768119045331,-500.0,0.00016438,2]
[401302077,1768119045340,-500.0,0.00016438,2]
[401302078,1768119045351,-594.49843147,0.00016438,2]
[401302079,1768119045360,-468.6,0.00016438,2]
[401302080,1768119045369,-502.60955562,0.00016438,2]
[401302081,1768119045379,-1552.92932298,0.00016438,2]
[401302082,1768119045388,-3000.0,0.00016438,2]
[401302083,1768119045397,-3000.0,0.00016438,2]
[401302084,1768119045406,-260.15865923,0.00016438,2]
[401302085,1768119045416,-3500.0,0.0001656,2]
[401302086,1768119045426,-2962.04250286,0.0001656,2]
[401302087,1768119045435,-3500.0,0.0001656,2]
[401302088,1768119045445,-3500.0,0.0001656,2]
[401302089,1768119045454,-3500.0,0.0001656,2]
[401302090,1768119045464,-12757.23540207,0.00016588,2]
[401302091,1768119045473,-12757.23540207,0.00016588,2]
[401302092,1768119045486,-672.9,0.000168,2]
[401302093,1768119045495,-1208.67496704,0.00016936,2]
[401302094,1768119045504,-1500.0,0.00016986,2]
[401302095,1768119045513,-3500.0,0.00016986,2]
[401302096,1768119045523,-1000.0,0.00017036,2]
[401302097,1768119045533,-1000.0,0.00017036,2]
[401302098,1768119045543,-4000.0,0.00017108,2]
[401302099,1768119045552,-1000.0,0.00017108,2]
[401302100,1768119045562,-4000.0,0.00017108,2]
[401302101,1768119045572,-1988.46116267,0.00017108,2]
[401302102,1768119045582,-381.0,0.00017233,2]
[401302103,1768119045591,-381.0,0.00017252,2]
[401302104,1768119045601,-381.0,0.00017278,2]
[401302105,1768119045610,-381.0,0.00017288,2]
[401302106,1768119045621,-672.9,0.000173,2]
[401302107,1768119045635,-381.0,0.00017329,2]
[401302108,1768119045644,-5000.0,0.00017412,2]
[401302109,1768119045653,-381.0,0.00017448,2]
[401302110,1768119045663,-500.0,0.00017534,2]
[401302111,1768119045672,-381.0,0.00017539,2]
[401302112,1768119045681,-381.0,0.00017552,2]
[401302113,1768119045690,-381.0,0.00017555,2]
[401302114,1768119045699,-381.0,0.00017555,2]
[401302115,1768119045709,-381.0,0.00017592,2]
[401302116,1768119045718,-381.0,0.00017594,2]
[401302117,1768119045727,-381.0,0.00017595,2]
[401302118,1768119045736,-281.87,0.0001761,2]
[401302119,1768119045745,-381.0,0.00017625,2]
[401302120,1768119045755,-2000.0,0.00017656,2]
[401302121,1768119045764,-2657.93100212,0.00017656,2]
[401302122,1768119045774,-805.90902036,0.00017692,2]
[401302123,1768119045783,-672.9,0.000178,2]
[401302124,1768119045792,-381.0,0.00017869,2]
[401302125,1768119045802,-381.0,0.00017901,2]
[401302126,1768119045811,-381.0,0.00018049,2]
[401302127,1768119045820,-381.0,0.00018187,2]
[401302128,1768119045829,-381.0,0.00018207,2]
[401302129,1768119045838,-672.9,0.000183,2]
[401302130,1768119045848,-468.6,0.00018315,2]
[401302131,1768119045857,-381.0,0.00018397,2]
[401302132,1768119045867,-381.0,0.00018444,2]
[401302133,1768119045876,-381.0,0.00018471,2]
[401302135,1768119045885,-381.0,0.00018691,2]
[401302136,1768119045894,-223.13477496,0.00018725,2]
[401302137,1768119045903,-461.67526834,0.00018725,2]
[401302138,1768119045912,-151.0,0.00018725,2]
[401302139,1768119045921,-151.0,0.00018725,2]
[401302140,1768119045931,-151.0,0.00018725,2]
[401302141,1768119045940,-151.0,0.00018725,2]
[401302142,1768119045949,-151.0,0.00018725,2]
[401302143,1768119045958,-250.15738416,0.00018725,2]
[401302144,1768119045967,-151.0,0.00018725,2]
[401302145,1768119045976,-151.0,0.00018725,2]
[401302146,1768119045985,-151.0,0.00018725,2]
[401302147,1768119045995,-151.0,0.00018725,2]
[401302148,1768119046004,-151.0,0.00018725,2]
[401302149,1768119046014,-151.0,0.00018725,2]
[401302151,1768119046023,-151.0,0.00018725,2]
[401302153,1768119046032,-151.0,0.00018725,2]
[401302155,1768119046041,-151.0,0.00018725,2]
[401302156,1768119046050,-151.0,0.00018725,2]
[401302158,1768119046059,-151.0,0.00018725,2]
[401302160,1768119046068,-151.0,0.00018725,2]
[401302162,1768119046077,-151.0,0.00018725,2]
[401302163,1768119046086,-151.0,0.00018725,2]
[401302164,1768119046095,-151.0,0.00018725,2]
[401302165,1768119046104,-151.0,0.00018725,2]
[401302166,1768119046114,-151.0,0.00018725,2]
[401302167,1768119046123,-151.0,0.00018725,2]
[401302168,1768119046132,-151.0,0.00018725,2]
[401302169,1768119046142,-151.0,0.00018725,2]
[401302170,1768119046152,-151.0,0.00018725,2]
[401302171,1768119046161,-151.0,0.00018725,2]
[401302172,1768119046171,-151.0,0.00018725,2]
[401302173,1768119046181,-151.0,0.00018725,2]
[401302174,1768119046190,-151.0,0.00018725,2]
[401302175,1768119046199,-151.0,0.00018725,2]
[401302176,1768119046208,-151.0,0.00018725,2]
[401302177,1768119046217,-151.0,0.00018725,2]
[401302178,1768119046227,-151.0,0.00018725,2]
[401302179,1768119046236,-151.0,0.00018725,2]
[401302180,1768119046245,-151.0,0.00018725,2]
[401302181,1768119046254,-151.0,0.00018725,2]
[401302182,1768119046264,-151.0,0.00018725,2]
[401302183,1768119046274,-151.0,0.00018725,2]
[401302184,1768119046283,-151.0,0.00018725,2]
[401302185,1768119046293,-151.0,0.00018725,2]
[401302186,1768119046303,-1000.0,0.0001874,2]
[401302187,1768119046312,-1000.0,0.0001874,2]
[401302188,1768119046322,-579.0,0.0001874,2]
[401302189,1768119046331,-381.0,0.00018767,2]
[401302190,1768119046341,-381.0,0.00018836,2]
[401302191,1768119046350,-3382.93313115,0.00018863,2]
[401302192,1768119046359,-672.9,0.000189,2]
[401302193,1768119046368,-303.10001603,0.000189,2]
[401302194,1768119046378,-303.10001603,0.000189,2]
[401302195,1768119046387,-303.10001603,0.00019089,2]
[401302196,1768119046396,-303.10001603,0.00019089,2]
[401302197,1768119046405,-1208.67496696,0.00019152,2]
[401302198,1768119046415,-166.96,0.000192,2]
[401302199,1768119046424,-16224.21,0.000192,2]
[401302200,1768119046434,-163.88,0.000192,2]
[401302201,1768119046443,-167.58,0.000192,2]
[401302202,1768119046453,-478.75725327,0.00019273,2]
[401302203,1768119046462,-303.10001603,0.00019278,2]
[401302204,1768119046471,-303.10001603,0.00019278,2]
[401302205,1768119046484,-2378.23,0.000193,2]
[401302206,1768119046493,-672.9,0.000194,2]
[401302207,1768119046502,-303.10001603,0.00019467,2]
[401302208,1768119046512,-303.10001603,0.00019467,2]
[401302209,1768119046521,-303.10001603,0.00019656,2]
[401302210,1768119046531,-303.10001603,0.00019656,2]
[401302211,1768119046540,-3588.20550987,0.00019679,2]
[401302212,1768119046550,-882.25829597,0.00019692,2]
[401302213,1768119046559,-496.47127164,0.00019821,2]
[401302214,1768119046569,-454.65002405,0.00019845,4]
[401302215,1768119046578,-454.65002405,0.00019845,4]
[401302216,1768119046588,-672.9,0.000199,2]
[401302217,1768119046598,-151.97857558,0.0002,2]
[401302218,1768119046608,-454.65002405,0.00020034,4]
[401302219,1768119046617,-454.65002405,0.00020034,4]
[401302220,1768119046626,-468.6,0.00020192,2]
[401302221,1768119046635,-454.65002405,0.00020223,4]
[401302222,1768119046644,-454.65002405,0.00020223,4]
[401302223,1768119046654,-514.84070869,0.00020369,2]
[401302224,1768119046663,-672.9,0.000204,2]
[401302225,1768119046673,-454.65002405,0.00020412,4]
[401302226,1768119046683,-454.65002405,0.00020412,4]
[401302227,1768119046693,-2096.819629,0.00020548,2]
[401302228,1768119046812,-454.65002405,0.00020601,4]
[401302229,1768119046822,-301.57435521,0.00020601,4]
[401302230,1768119046832,-1000.0,0.00020614,2]
[401302231,1768119046841,-1000.0,0.00020614,2]
[401302232,1768119046851,-1000.0,0.00020614,2]
[401302233,1768119046861,-12757.23540207,0.00020646,2]
[401302234,1768119046870,-672.9,0.000209,2]
[401302235,1768119046880,-356.05155998,0.00020917,2]
[401302236,1768119046889,-3000.0,0.00021,2]
[401302237,1768119046898,-3000.0,0.0002101,2]
[401302238,1768119046908,-3000.0,0.0002102,2]
[401302239,1768119046917,-3000.0,0.0002103,2]
[401302240,1768119046926,-3000.0,0.0002104,2]
[401302241,1768119046936,-3000.0,0.0002105,2]
[401302242,1768119046945,-3000.0,0.0002106,2]
[401302243,1768119046955,-3000.0,0.0002107,2]
[401302244,1768119046964,-3000.0,0.0002108,2]
[401302245,1768119046974,-3000.0,0.0002109,2]
[401302246,1768119046983,-3000.0,0.000211,2]
[401302247,1768119046993,-3000.0,0.0002111,2]
[401302248,1768119047002,-3000.0,0.0002112,2]
[401302249,1768119047012,-3000.0,0.0002113,2]
[401302250,1768119047021,-3000.0,0.0002114,2]
[401302251,1768119047031,-3000.0,0.0002115,2]
[401302252,1768119047040,-5944.891896,0.0002116,2]
[401302253,1768119047049,-1208.67496696,0.00021367,2]
[401302254,1768119047059,-672.9,0.000214,2]
[401302255,1768119047069,-958.60757159,0.00021692,2]
[401302256,1768119047078,-672.9,0.000219,2]
[401302257,1768119047088,-152.90727816,0.00021918,2]
[401302258,1768119047097,-468.6,0.00022069,2]
[401302259,1768119047107,-672.9,0.000224,2]
[401302260,1768119047116,-1000.0,0.00022675,10]
[401302261,1768119047126,-1000.0,0.00022675,10]
[401302262,1768119047136,-1000.0,0.00022675,10]
[401302263,1768119047145,-715.0,0.00022675,10]
[401302264,1768119047155,-672.9,0.00023,2]
[401302265,1768119047165,-234.89,0.0002302,2]
[401302266,1768119047175,-672.9,0.000235,2]
[401302267,1768119047184,-1208.67496696,0.00023583,2]
[401302268,1768119047194,-1034.9568472,0.00023692,2]
[401302269,1768119047204,-160.57,0.00023753,30]
[401302270,1768119047213,-468.6,0.00023946,2]
[401302271,1768119047223,-16224.21,0.00024,2]
[401302272,1768119047233,-672.9,0.00024,2]
[401302273,1768119047242,-672.9,0.000245,2]
[401302274,1768119047252,-500.0,0.00024658,2]
[401302275,1768119047261,-214.1,0.00024786,30]
[401302276,1768119047271,-500.0,0.00024795,2]
[401302277,1768119047281,-66274.5706616,0.000248,2]
[401302278,1768119047291,-400097.821185,0.000249,2]
[401302279,1768119047301,-500.0,0.00024932,2]
[401302280,1768119047310,-1000.0,0.00024943,10]
[401302281,1768119047321,-1000.0,0.00024943,10]
[401302282,1768119047331,-1000.0,0.00024943,10]
[401302283,1768119047341,-672.9,0.00025,2]
[401302284,1768119047351,-500.0,0.00025069,2]
[401302285,1768119047360,-250.0,0.00025205,2]
[401302286,1768119047370,-500.0,0.00025206,2]
[401302287,1768119047379,-3588.20550987,0.00025283,2]
[401302288,1768119047389,-500.0,0.00025343,2]
[401302289,1768119047399,-500.0,0.0002548,2]
[401302290,1768119047409,-672.9,0.000255,2]
[401302291,1768119047419,-261.77529652,0.00025507,14]
[401302292,1768119047429,-500.0,0.00025617,2]
[401302293,1768119047439,-1111.30612281,0.00025692,2]
[401302294,1768119047449,-350.0,0.00025753,2]
[401302295,1768119047459,-255.99235489,0.00025754,2]
[401302296,1768119047468,-1208.67496696,0.00025799,2]
[401302297,1768119047479,-267.62,0.00025819,30]
[401302298,1768119047489,-468.6,0.00025823,2]
[401302299,1768119047499,-2000.51544348,0.0002587,2]
[401302300,1768119047510,-672.9,0.00026,2]
[401302301,1768119047519,-450.0,0.00026301,2]
[401302302,1768119047529,-672.9,0.000265,2]
[401302303,1768119047539,-550.0,0.00026849,2]
[401302304,1768119047548,-321.15,0.00026851,30]
[401302305,1768119047558,-2378.23,0.000269,14]
[401302306,1768119047567,-672.9,0.000271,2]
[401302307,1768119047577,-181.17141011,0.00027137,2]
[401302308,1768119047586,-182.0,0.00027151,23]
[401302309,1768119047596,-702.10519323,0.00027397,5]
[401302310,1768119047606,-300.0,0.00027397,2]
[401302311,1768119047615,-300.0,0.00027397,2]
[401302312,1768119047625,-300.0,0.00027397,2]
[401302313,1768119047634,-300.0,0.00027397,2]
[401302314,1768119047644,-672.9,0.000276,2]
[401302315,1768119047654,-1187.65539842,0.00027692,2]
[401302316,1768119047663,-468.6,0.00027699,3]
[401302317,1768119047673,-374.67,0.00027884,30]
[401302318,1768119047682,-1208.67496696,0.00028014,2]
[401302319,1768119047691,-5000.0,0.00028037,2]
[401302320,1768119047701,-672.9,0.000281,2]
[401302321,1768119047711,-672.9,0.000286,2]
[401302322,1768119047720,-211.0,0.00028795,31]
[401302323,1768119047730,-428.2,0.00028917,30]
[401302324,1768119047739,-672.9,0.000291,2]
[401302325,1768119047748,-1112.0,0.00029491,2]
[401302326,1768119047757,-468.6,0.00029576,4]
[401302327,1768119047767,-672.9,0.000296,2]
[401302328,1768119047776,-1264.00467404,0.00029692,2]
[401302329,1768119047786,-16224.21,0.000298,2]
[401302330,1768119047795,-481.72,0.0002995,30]
[401302331,1768119047804,-672.9,0.000301,2]
[401302332,1768119047814,-300.0,0.00030137,5]
[401302333,1768119047823,-221.86,0.00030137,2]
[401302334,1768119047832,-506.7938,0.00030137,2]
[401302335,1768119047841,-506.7938,0.00030137,3]
[401302336,1768119047851,-506.7938,0.00030137,4]
[401302337,1768119047860,-200.0,0.00030137,2]
[401302338,1768119047870,-313.59,0.00030137,2]
[401302339,1768119047879,-500.0,0.00030137,2]
[401302340,1768119047888,-5000.0,0.00030203,2]
[401302341,1768119047897,-1208.67496696,0.0003023,2]
[401302342,1768119047907,-210.77216325,0.00030695,10]
[401302343,1768119047916,-500.0,0.00030785,7]
[401302344,1768119047925,-3588.20550987,0.00030886,2]
[401302345,1768119047934,-370.72044268,0.00030982,30]
[401302346,1768119047943,-162.0,0.00030986,43]
[401302347,1768119047952,-536.72987461,0.00031235,7]
[401302348,1768119047961,-468.6,0.00031453,5]
[401302349,1768119047972,-210.77216324,0.00031644,10]
[401302350,1768119047981,-1340.35394965,0.00031692,2]
[401302351,1768119047990,-5000.0,0.0003237,2]
[401302352,1768119047999,-1208.67496696,0.00032446,2]
[401302353,1768119048009,-999.0,0.00032876,120]
[401302354,1768119048018,-500.0,0.00032877,8]
[401302355,1768119048027,-369.68,0.00032877,10]
[401302356,1768119048037,-633.02,0.00032877,10]
[401302357,1768119048046,-300.0,0.00032877,5]
[401302358,1768119048056,-450.0,0.00032877,5]
[401302359,1768119048066,-174.0,0.00033178,58]
[401302360,1768119048076,-180.93086226,0.000332,117]
[401302361,1768119048086,-180.93086222,0.000332,117]
[401302362,1768119048095,-180.93086222,0.000332,117]
[401302363,1768119048105,-180.93086222,0.000332,117]
[401302364,1768119048115,-1045039.0068,0.0003322,30]
[401302365,1768119048125,-1112.0,0.00033299,2]
[401302366,1768119048135,-468.6,0.0003333,6]
[401302367,1768119048145,-600.0,0.00033425,5]
[401302368,1768119048154,-1416.70322526,0.00033692,120]
[401302369,1768119048163,-210.0,0.00033699,5]
[401302370,1768119048172,-5142.43646252,0.00033732,30]
[401302371,1768119048182,-253.032,0.000338,36]
[401302372,1768119048191,-1002.20117456,0.00033944,15]
[401302373,1768119048200,-999.0,0.00033972,120]
[401302374,1768119048209,-900.0,0.00033973,5]
[401302375,1768119048219,-409.67,0.0003411,60]
[401302376,1768119048228,-547.0,0.00034133,30]
[401302377,1768119048238,-756.0,0.00034133,30]
[401302378,1768119048247,-720.0,0.00034133,30]
[401302379,1768119048256,-16224.21,0.000342,14]
[401302380,1768119048266,-409.67,0.0003421,60]
[401302381,1768119048275,-2378.23,0.000343,30]
[401302382,1768119048285,-409.67,0.0003431,60]
[401302383,1768119048294,-409.67,0.0003441,60]
[401302384,1768119048304,-409.67,0.0003451,60]
[401302385,1768119048313,-1200.0,0.00034521,5]
[401302386,1768119048323,-270.0,0.00034521,5]
[401302387,1768119048333,-5000.0,0.00034536,3]
[401302388,1768119048342,-409.67,0.0003461,60]
[401302389,1768119048352,-1208.67496696,0.00034661,2]
[401302390,1768119048362,-409.67,0.0003471,60]
[401302391,1768119048372,-409.67,0.0003481,60]
[401302392,1768119048382,-409.67,0.0003491,60]
[401302393,1768119048391,-409.67,0.0003501,60]
[401302394,1768119048401,-999.0,0.00035068,120]
[401302395,1768119048410,-1500.0,0.00035068,5]
[401302396,1768119048420,-409.67,0.0003511,60]
[401302397,1768119048430,-468.6,0.00035207,30]
[401302398,1768119048440,-409.67,0.0003521,60]
[401302399,1768119048450,-409.67,0.0003531,60]
[401302400,1768119048461,-330.0,0.00035342,5]
[401302401,1768119048471,-409.67,0.0003541,60]
[401302402,1768119048483,-728.0,0.00035449,11]
[401302403,1768119048494,-728.0,0.00035457,11]
[401302404,1768119048504,-160.0,0.00035466,11]
[401302405,1768119048514,-160.0,0.00035485,11]
[401302406,1768119048524,-728.0,0.000355,11]
[401302407,1768119048533,-409.67,0.0003551,60]
[401302408,1768119048542,-409.67,0.0003561,60]
[401302409,1768119048553,-500.0,0.00035616,30]
[401302410,1768119048562,-1800.0,0.00035616,5]
[401302411,1768119048572,-600.0,0.00035616,5]
[401302412,1768119048581,-1493.05250088,0.00035692,120]
[401302413,1768119048591,-409.67,0.0003571,60]
[401302414,1768119048600,-728.0,0.00035769,11]
[401302415,1768119048610,-728.0,0.0003578,11]
[401302416,1768119048619,-728.0,0.00035786,11]
[401302417,1768119048628,-409.67,0.0003581,60]
[401302418,1768119048638,-728.0,0.00035812,11]
[401302419,1768119048647,-728.0,0.0003582,11]
[401302420,1768119048656,-200.0,0.00035883,120]
[401302421,1768119048748,-801.82496169,0.0003589,2]
[401302422,1768119048758,-16224.21,0.000359,14]
[401302423,1768119048767,-409.67,0.0003591,60]
[401302424,1768119048776,-39000.0,0.00036,120]
[401302425,1768119048786,-409.67,0.0003601,60]
[401302426,1768119048795,-500.0,0.00036041,120]
[401302427,1768119048804,-500.0,0.00036041,120]
[401302428,1768119048816,-500.0,0.00036041,120]
[401302429,1768119048825,-500.0,0.00036041,120]
[401302430,1768119048834,-500.0,0.00036041,120]
[401302431,1768119048843,-500.0,0.00036041,120]
[401302432,1768119048852,-500.0,0.00036041,120]
[401302433,1768119048861,-500.0,0.00036041,120]
[401302434,1768119048870,-500.0,0.00036041,120]
[401302435,1768119048879,-500.0,0.00036041,120]
[401302436,1768119048888,-500.0,0.00036041,120]
[401302437,1768119048897,-500.0,0.00036041,120]
[401302438,1768119048906,-500.0,0.00036041,120]
[401302439,1768119048915,-500.0,0.00036041,120]
[401302440,1768119048925,-500.0,0.00036041,120]
[401302441,1768119048935,-500.0,0.00036041,120]
[401302442,1768119048944,-500.0,0.00036041,120]
[401302443,1768119048953,-500.0,0.00036041,120]
[401302444,1768119048962,-500.0,0.00036041,120]
[401302445,1768119048971,-500.0,0.00036041,120]
[401302446,1768119048980,-500.0,0.00036041,120]
[401302447,1768119048989,-500.0,0.00036041,120]
[401302448,1768119048998,-500.0,0.00036041,120]
[401302449,1768119049007,-500.0,0.00036041,120]
[401302450,1768119049016,-500.0,0.00036041,120]
[401302451,1768119049025,-500.0,0.00036041,120]
[401302452,1768119049034,-500.0,0.00036041,120]
[401302453,1768119049044,-500.0,0.00036041,120]
[401302454,1768119049053,-500.0,0.00036041,120]
[401302455,1768119049062,-500.0,0.00036041,120]
[401302456,1768119049071,-500.0,0.00036041,120]
[401302457,1768119049080,-500.0,0.00036041,120]
[401302458,1768119049089,-500.0,0.00036041,120]
[401302459,1768119049099,-500.0,0.00036041,120]
[401302460,1768119049108,-500.0,0.00036041,120]
[401302461,1768119049117,-500.0,0.00036041,120]
[401302462,1768119049126,-500.0,0.00036041,120]
[401302463,1768119049135,-500.0,0.00036041,120]
[401302464,1768119049144,-500.0,0.00036041,120]
[401302465,1768119049153,-500.0,0.00036041,120]
[401302466,1768119049162,-500.0,0.00036041,120]
[401302467,1768119049171,-500.0,0.00036041,120]
[401302468,1768119049180,-500.0,0.00036041,120]
[401302469,1768119049190,-289.23,0.00036041,120]
[401302470,1768119049199,-151.0,0.00036041,31]
[401302471,1768119049208,-240.800368,0.00036041,31]
[401302472,1768119049217,-2362.302596,0.00036041,31]
[401302473,1768119049227,-2362.302596,0.00036041,31]
[401302474,1768119049236,-151.0,0.00036041,31]
[401302475,1768119049245,-2362.302596,0.00036041,31]
[401302476,1768119049254,-2362.302596,0.00036041,31]
[401302477,1768119049263,-151.0,0.00036041,31]
[401302478,1768119049273,-152.567384,0.00036041,31]
[401302479,1768119049283,-151.0,0.00036041,31]
[401302480,1768119049292,-151.0,0.00036041,31]
[401302481,1768119049302,-226.782828,0.00036041,31]
[401302482,1768119049312,-151.0,0.00036041,31]
[401302483,1768119049322,-151.0,0.00036041,31]
[401302484,1768119049331,-151.0,0.00036041,31]
[401302485,1768119049340,-151.0,0.00036041,31]
[401302486,1768119049349,-151.0,0.00036041,31]
[401302487,1768119049359,-151.0,0.00036041,31]
[401302488,1768119049368,-151.0,0.00036041,31]
[401302489,1768119049377,-2378.23,0.000361,30]